bitfinex/quotes_BTCUSD_20250730
["timestamp","ask_amount","ask_price","bid_price","bid_amount"]
[1753837284053,0.59731624,117970.0,117960.0,0.2649196]
[1753837286353,0.35542905,117970.0,117960.0,0.2649196]
[1753837286560,0.58884016,117970.0,117960.0,0.2649196]
[1753837287493,0.35542905,117970.0,117960.0,0.2649196]
[1753837287688,0.58884016,117970.0,117960.0,0.2649196]
[1753837291357,0.35542905,117970.0,117960.0,0.2649196]
[1753837291568,0.58884016,117970.0,117960.0,0.2649196]
[1753837292931,0.59731624,117970.0,117960.0,0.2649196]
[1753837293816,0.60579246,117970.0,117960.0,0.2649196]
[1753837294230,0.69026976,117970.0,117960.0,0.2649196]
[1753837294651,0.68179354,117970.0,117960.0,0.2649196]
[1753837294882,0.44838243,117970.0,117960.0,0.2649196]
[1753837295101,0.68179354,117970.0,117960.0,0.2649196]
[1753837295311,0.69026976,117970.0,117960.0,0.2649196]
[1753837296553,0.68179354,117970.0,117960.0,0.2649196]
[1753837299483,0.59731624,117970.0,117960.0,0.2649196]
[1753837299719,0.35542905,117970.0,117960.0,0.2649196]
[1753837299911,0.58884016,117970.0,117960.0,0.2649196]
[1753837300135,0.35542905,117970.0,117960.0,0.2649196]
[1753837300498,0.58884016,117970.0,117960.0,0.2649196]
[1753837303066,0.59731624,117970.0,117960.0,0.2649196]
[1753837303476,0.58884016,117970.0,117960.0,0.2649196]
[1753837303674,0.59731624,117970.0,117960.0,0.2649196]
[1753837304300,0.60579246,117970.0,117960.0,0.2649196]
[1753837304502,0.59731624,117970.0,117960.0,0.2649196]
[1753837306272,0.58884016,117970.0,117960.0,0.2649196]
[1753837306689,0.59731624,117970.0,117960.0,0.2649196]
[1753837307514,0.35542905,117970.0,117960.0,0.2649196]
[1753837307733,0.24884016,117970.0,117960.0,0.2649196]
[1753837309682,0.58884016,117970.0,117960.0,0.2649196]
[1753837310308,0.58896349,117970.0,117960.0,0.2649196]
[1753837312979,0.67344079,117970.0,117960.0,0.2649196]
[1753837323604,0.58896349,117970.0,117960.0,0.2649196]
[1753837326675,0.35555238,117970.0,117960.0,0.2649196]
[1753837326842,0.58896349,117970.0,117960.0,0.2649196]
[1753837328775,0.59743957,117970.0,117960.0,0.2649196]
[1753837329884,0.58896349,117970.0,117960.0,0.2649196]
[1753837330090,0.35555238,117970.0,117960.0,0.2649196]
[1753837330260,0.58896349,117970.0,117960.0,0.2649196]
[1753837330867,0.62068111,117970.0,117960.0,0.2649196]
[1753837332384,0.38727,117970.0,117960.0,0.2649196]
[1753837332584,0.62068111,117970.0,117960.0,0.2649196]
[1753837338016,0.38727,117970.0,117960.0,0.2649196]
[1753837338239,0.62068111,117970.0,117960.0,0.2649196]
[1753837338662,0.38727,117970.0,117960.0,0.2649196]
[1753837338876,0.62068111,117970.0,117960.0,0.2649196]
[1753837342075,0.75000111,117970.0,117960.0,0.2649196]
[1753837347454,0.75847719,117970.0,117960.0,0.2649196]
[1753837347902,0.75000111,117970.0,117960.0,0.2649196]
[1753837349524,0.75847726,117970.0,117960.0,0.2649196]
[1753837349935,0.75000111,117970.0,117960.0,0.2649196]
[1753837352826,0.75847719,117970.0,117960.0,0.1354396]
[1753837353007,0.76695341,117970.0,117960.0,0.2647196]
[1753837353806,0.75847719,117970.0,117960.0,0.2647196]
[1753837355246,0.76695334,117970.0,117960.0,0.2647196]
[1753837355852,0.37980667,117970.0,117960.0,0.2647196]
[1753837356083,0.37133052,117970.0,117960.0,0.2647196]
[1753837356724,0.12944333,117970.0,117960.0,0.2647196]
[1753837356934,0.36285444,117970.0,117960.0,0.2647196]
[1753837357352,0.12944333,117970.0,117960.0,0.2647196]
[1753837357567,0.36285444,117970.0,117960.0,0.2647196]
[1753837359374,0.39034162,117970.0,117960.0,0.2647196]
[1753837360677,0.02761051,117970.0,117960.0,0.2647196]
[1753837360896,0.02761051,117970.0,117960.0,0.81601912]
[1753837361315,0.00012333,117970.0,117960.0,0.81601912]
[1753837361738,0.02748367,117970.0,117960.0,0.3491969]
[1753837361918,0.02748367,117970.0,117960.0,0.81601912]
[1753837362159,0.00012333,117970.0,117960.0,0.81601912]
[1753837362606,0.00012333,117970.0,117960.0,0.68673912]
[1753837362822,0.00012333,117970.0,117960.0,0.81597912]
[1753837364296,0.00112333,117970.0,117960.0,0.81597912]
[1753837364703,0.00012333,117970.0,117960.0,0.81597912]
[1753837365160,0.00012333,117970.0,117960.0,0.81697912]
[1753837374453,0.02801282,117970.0,117960.0,0.81697912]
[1753837375065,0.02801282,117970.0,117960.0,0.58356801]
[1753837375264,0.02801282,117970.0,117960.0,0.81697912]
[1753837376740,0.00012333,117970.0,117960.0,0.81697912]
[1753837378434,0.00012333,117970.0,117960.0,0.3501569]
[1753837378631,0.00012333,117970.0,117960.0,0.81697912]
[1753837379523,0.0280845,117970.0,117960.0,0.81697912]
[1753837379907,0.00012333,117970.0,117960.0,0.81697912]
[1753837381646,0.00012333,117970.0,117960.0,0.3501569]
[1753837381842,0.00012333,117970.0,117960.0,0.81697912]
[1753837382920,0.00012333,117970.0,117960.0,0.81693912]
[1753837383324,0.03546838,117970.0,117960.0,0.81693912]
[1753837385143,0.03546838,117970.0,117960.0,0.68773912]
[1753837385325,0.03546838,117970.0,117960.0,0.81693912]
[1753837385544,0.03546838,117970.0,117960.0,0.81689912]
[1753837387975,0.03546838,117970.0,117960.0,0.2209169]
[1753837388183,0.26887949,117970.0,117960.0,0.2646373]
[1753837388398,0.26887949,117970.0,117960.0,0.2891769]
[1753837389047,0.26887949,117970.0,117960.0,0.3125469]
[1753837389452,0.26887949,117970.0,117960.0,0.3155069]
[1753837389709,0.03546838,117970.0,117960.0,0.3155069]
[1753837389936,0.26887949,117970.0,117960.0,0.3155069]
[1753837390146,0.03546838,117970.0,117960.0,0.3316069]
[1753837390841,0.26887949,117970.0,117960.0,0.2909673]
[1753837391047,0.26887949,117970.0,117960.0,0.3155069]
[1753837392530,0.26887949,117970.0,117960.0,0.1863469]
[1753837392707,0.26887949,117970.0,117960.0,0.3155069]
[1753837395176,0.76887949,117970.0,117960.0,0.3155069]
[1753837395360,0.76887949,117970.0,117960.0,0.3319069]
[1753837395361,0.26887949,117970.0,117960.0,0.3319069]
[1753837396538,0.26887949,117970.0,117960.0,0.3155069]
[1753837396943,0.26887949,117970.0,117960.0,0.2909673]
[1753837397221,0.26887949,117970.0,117960.0,0.3155069]
[1753837399246,0.26887949,117970.0,117960.0,0.2909673]
[1753837400189,0.26887949,117970.0,117960.0,0.3155069]
[1753837400406,0.26887949,117970.0,117960.0,0.3312069]
[1753837400613,0.26887949,117970.0,117960.0,0.3467069]
[1753837400817,0.26887949,117970.0,117960.0,0.3487169]
[1753837401519,0.26887949,117970.0,117960.0,0.3241773]
[1753837401739,0.26887949,117970.0,117960.0,0.3487169]
[1753837402494,0.03546838,117970.0,117960.0,0.3487169]
[1753837405593,0.03546838,117970.0,117960.0,0.58212801]
[1753837408146,0.53546838,117970.0,117960.0,0.58212801]
[1753837408344,0.53546838,117970.0,117960.0,0.58208801]
[1753837408515,0.03546838,117970.0,117960.0,0.58208801]
[1753837409560,0.53546838,117970.0,117960.0,0.58208801]
[1753837409712,0.03546838,117970.0,117960.0,0.58208801]
[1753837420317,0.53546838,117970.0,117960.0,0.58208801]
[1753837420522,0.03546838,117970.0,117960.0,0.58208801]
[1753837420933,0.53546838,117970.0,117960.0,0.58208801]
[1753837421156,0.03546838,117970.0,117960.0,0.58208801]
[1753837432035,0.53546838,117970.0,117960.0,0.58208801]
[1753837432229,0.03546838,117970.0,117960.0,0.58208801]
[1753837432888,0.03546838,117970.0,117960.0,0.81549912]
[1753837438299,0.03546838,117970.0,117960.0,0.81649912]
[1753837452012,0.41329878,117990.0,117960.0,0.81649912]
[1753837452271,0.41329878,117990.0,117980.0,0.0245396]
[1753837452272,0.23341111,117990.0,117980.0,0.0245396]
[1753837452462,0.23341111,117990.0,117980.0,0.1535396]
[1753837452948,0.23341111,117990.0,117980.0,0.1783396]
[1753837453164,0.4439,118000.0,117990.0,0.0745396]
[1753837453385,4.722058,118000.0,117990.0,0.36846071]
[1753837453618,4.722058,118000.0,117990.0,0.49746071]
[1753837453825,4.722058,118000.0,117990.0,0.2640496]
[1753837454030,4.722058,118000.0,117990.0,0.2630496]
[1753837454443,0.7839,118000.0,117990.0,0.2466496]
[1753837454665,5.06514018,118000.0,117990.0,0.2466496]
[1753837455088,5.29855129,118000.0,117990.0,0.2466496]
[1753837455231,5.06514018,118000.0,117990.0,0.2466496]
[1753837455665,5.09945736,118000.0,117990.0,0.2466496]
[1753837455875,4.75945736,118000.0,117990.0,0.2466496]
[1753837457531,4.75945736,118000.0,117990.0,0.2305496]
[1753837458926,4.99286847,118000.0,117990.0,0.2305496]
[1753837463585,5.12186847,118000.0,117990.0,0.2305496]
[1753837464600,5.12186847,118000.0,117990.0,0.2469496]
[1753837465558,5.12146847,118000.0,117990.0,0.2629496]
[1753837466237,0.84331047,118000.0,117990.0,0.2629496]
[1753837468422,0.60989936,118000.0,117990.0,0.2629496]
[1753837468635,0.60989936,118000.0,117990.0,0.2650296]
[1753837468853,0.84331047,118000.0,117990.0,0.2650296]
[1753837469267,0.84031047,118000.0,117990.0,0.2650296]
[1753837469499,0.84131047,118000.0,117990.0,0.2650296]
[1753837471810,0.84127047,118000.0,117990.0,0.2650296]
[1753837477892,0.47889936,118000.0,117990.0,0.2650296]
[1753837478031,0.71231047,118000.0,117990.0,0.2650296]
[1753837478655,0.47889936,118000.0,117990.0,0.2650296]
[1753837479135,0.71231047,118000.0,117990.0,0.2650296]
[1753837479387,0.71231047,118000.0,117990.0,0.2402296]
[1753837481390,0.47889936,118000.0,117990.0,0.2402296]
[1753837484757,0.47789936,118000.0,117990.0,0.2402296]
[1753837485630,0.71131047,118000.0,117990.0,0.2402296]
[1753837487239,0.71131047,118000.0,117990.0,0.1112296]
[1753837487450,0.94472158,118000.0,117990.0,0.2634596]
[1753837487674,0.47789936,118000.0,117990.0,0.2634596]
[1753837487893,0.26781047,118000.0,117990.0,0.2634596]
[1753837488112,0.76781047,118000.0,117990.0,0.2634596]
[1753837488322,0.26781047,118000.0,117990.0,0.2634596]
[1753837489285,0.76781047,118000.0,117990.0,0.2634596]
[1753837489735,0.26781047,118000.0,117990.0,0.2634596]
[1753837492951,0.23341111,118000.0,117990.0,0.2634596]
[1753837494548,4.645244,118000.0,117990.0,0.49687071]
[1753837494762,4.145244,118000.0,117990.0,0.2634596]
[1753837495189,0.26827923,118000.0,117990.0,0.2634596]
[1753837496511,0.03486812,118000.0,117990.0,0.2634596]
[1753837496740,0.23341111,118000.0,117990.0,0.2634596]
[1753837498023,4.62303721,118010.0,118000.0,0.0245396]
[1753837498441,4.62303721,118010.0,118000.0,0.0478496]
[1753837499101,4.614564,118010.0,118000.0,0.0478496]
[1753837499312,4.84797511,118010.0,118000.0,0.0478496]
[1753837499744,4.88207766,118010.0,118000.0,0.0478496]
[1753837500218,4.88307766,118010.0,118000.0,0.0478496]
[1753837500431,4.88307766,118010.0,118000.0,0.0510696]
[1753837500857,4.88307766,118010.0,118000.0,0.0670696]
[1753837501744,4.64966655,118010.0,118000.0,0.0670696]
[1753837501965,4.88307766,118010.0,118000.0,0.0670696]
[1753837502530,4.65813983,118010.0,118000.0,0.0670696]
[1753837502727,4.64966655,118010.0,118000.0,0.0670696]
[1753837502950,4.88307766,118010.0,118000.0,0.0670696]
[1753837503801,4.88307766,118010.0,118000.0,0.0832696]
[1753837504036,4.89155094,118010.0,118000.0,0.0832696]
[1753837504660,4.64966655,118010.0,118000.0,0.0832696]
[1753837504880,4.88307766,118010.0,118000.0,0.0832696]
[1753837505355,4.89155094,118010.0,118000.0,0.0832696]
[1753837505770,4.90002436,118010.0,118000.0,0.0832696]
[1753837505983,4.90002429,118010.0,118000.0,0.0832696]
[1753837506460,4.89155094,118010.0,118000.0,0.0832696]
[1753837506678,4.90002436,118010.0,118000.0,0.0832696]
[1753837507245,5.36484273,118010.0,118000.0,0.0245396]
[1753837507461,5.43576381,118010.0,118000.0,0.0245396]
[1753837507674,0.01694864,118000.0,117990.0,0.049]
[1753837507932,4.76640864,118000.0,117990.0,0.0735396]
[1753837508114,4.77488314,118000.0,117990.0,0.0735396]
[1753837508333,4.76640864,118000.0,117990.0,0.0735396]
[1753837508546,4.77488314,118000.0,117990.0,0.0735396]
[1753837508757,4.77488314,118000.0,117990.0,0.0968496]
[1753837509387,4.76640864,118000.0,117990.0,0.0968496]
[1753837509591,4.77488321,118000.0,117990.0,0.0968496]
[1753837509804,4.77488314,118000.0,117990.0,0.1150696]
[1753837510448,0.62963914,118000.0,117990.0,0.1150696]
[1753837510644,4.77488314,118000.0,117990.0,0.1150696]
[1753837511319,4.29958642,118000.0,117990.0,0.1313696]
[1753837511533,4.76640864,118000.0,117990.0,0.1313696]
[1753837512207,4.77488307,118000.0,117990.0,0.1313696]
[1753837512415,4.78335757,118000.0,117990.0,0.1313696]
[1753837512658,4.77488307,118000.0,117990.0,0.1313696]
[1753837513102,4.78335757,118000.0,117990.0,0.1313696]
[1753837513304,4.77488307,118000.0,117990.0,0.1313696]
[1753837514399,4.76640864,118000.0,117990.0,0.1313696]
[1753837514609,4.75793428,118000.0,117990.0,0.1313696]
[1753837514817,4.76640856,118000.0,117990.0,0.1333896]
[1753837516077,4.76640849,118000.0,117990.0,0.1333896]
[1753837516282,4.77488277,118000.0,117990.0,0.1333896]
[1753837517930,4.7833572,118000.0,117990.0,0.1333896]
[1753837518143,4.77488277,118000.0,117990.0,0.1333896]
[1753837518980,4.29958627,118000.0,117990.0,0.1333896]
[1753837519254,4.76640849,118000.0,117990.0,0.1333896]
[1753837520710,4.29958627,118000.0,117990.0,0.1333896]
[1753837520925,4.76640849,118000.0,117990.0,0.1333896]
[1753837521161,4.29958627,118000.0,117990.0,0.1333896]
[1753837521394,4.76640849,118000.0,117990.0,0.1333896]
[1753837521865,4.75793428,118000.0,117990.0,0.1333896]
[1753837523164,0.61269028,118000.0,117990.0,0.1333896]
[1753837523377,4.75793428,118000.0,117990.0,0.1333896]
[1753837524264,4.74946014,118000.0,117990.0,0.1333896]
[1753837524405,4.75793428,118000.0,117990.0,0.1333896]
[1753837525020,4.76640856,118000.0,117990.0,0.1333896]
[1753837525637,4.75793428,118000.0,117990.0,0.1333896]
[1753837525844,4.76640849,118000.0,117990.0,0.1333896]
[1753837529516,4.77488285,118000.0,117990.0,0.1333896]
[1753837529714,4.77488277,118000.0,117990.0,0.1333896]
[1753837530221,4.76640849,118000.0,117990.0,0.1333896]
[1753837532305,4.77488285,118000.0,117990.0,0.1333896]
[1753837532881,4.76640849,118000.0,117990.0,0.1333896]
[1753837538326,4.75793428,118000.0,117990.0,0.1333896]
[1753837538981,4.29111206,118000.0,117990.0,0.1333896]
[1753837539195,4.75793428,118000.0,117990.0,0.1333896]
[1753837540707,4.74098622,118000.0,117990.0,0.1333896]
[1753837540920,4.51604911,118000.0,117990.0,0.1333896]
[1753837541354,4.74946022,118000.0,117990.0,0.1333896]
[1753837541751,4.74098622,118000.0,117990.0,0.1333896]
[1753837542047,4.51604903,118000.0,117990.0,0.1333896]
[1753837543343,4.74946014,118000.0,117990.0,0.1333896]
[1753837543549,4.28263792,118000.0,117990.0,0.1333896]
[1753837543965,4.74946014,118000.0,117990.0,0.1333896]
[1753837544387,4.28263792,118000.0,117990.0,0.1333896]
[1753837544606,4.74946014,118000.0,117990.0,0.1333896]
[1753837544823,4.75793421,118000.0,117990.0,0.1333896]
[1753837545033,4.29111199,118000.0,117990.0,0.1333896]
[1753837545245,4.75793421,118000.0,117990.0,0.1333896]
[1753837545664,4.74946014,118000.0,117990.0,0.1333896]
[1753837546078,0.61265021,118000.0,117990.0,0.1333896]
[1753837546289,4.72231821,118000.0,117990.0,0.1333896]
[1753837546731,4.71384414,118000.0,117990.0,0.1333896]
[1753837547338,4.72231821,118000.0,117990.0,0.1333896]
[1753837547574,4.71384414,118000.0,117990.0,0.1333896]
[1753837547786,4.24702192,118000.0,117990.0,0.1333896]
[1753837547993,4.71384414,118000.0,117990.0,0.1333896]
[1753837548176,4.72231821,118000.0,117990.0,0.1333896]
[1753837548981,4.71384414,118000.0,117990.0,0.1333896]
[1753837549772,4.48043303,118000.0,117990.0,0.1333896]
[1753837549982,4.71384414,118000.0,117990.0,0.1333896]
[1753837550856,4.72231821,118000.0,117990.0,0.1333896]
[1753837551225,4.72231814,118000.0,117990.0,0.1333896]
[1753837552274,4.71384414,118000.0,117990.0,0.1333896]
[1753837552481,4.48043303,118000.0,117990.0,0.1333896]
[1753837552728,4.24702192,118000.0,117990.0,0.1333896]
[1753837552937,4.48043303,118000.0,117990.0,0.1333896]
[1753837553144,4.71384414,118000.0,117990.0,0.1333896]
[1753837559365,4.73079235,118000.0,117990.0,0.1333896]
[1753837559828,4.26397013,118000.0,117990.0,0.1333896]
[1753837560044,4.73079228,118000.0,117990.0,0.1333896]
[1753837560488,4.60191228,118000.0,117990.0,0.1333896]
[1753837560942,4.61038649,118000.0,117990.0,0.1333896]
[1753837562608,4.61886085,118000.0,117990.0,0.1313696]
[1753837562822,4.74770085,118000.0,117990.0,0.10683]
[1753837563029,4.73922693,118000.0,117990.0,0.2602096]
[1753837564725,4.73922693,118000.0,117990.0,0.2569896]
[1753837564926,4.27240471,118000.0,117990.0,0.2569896]
[1753837565166,4.73922693,118000.0,117990.0,0.2569896]
[1753837565363,4.74770143,118000.0,117990.0,0.2569896]
[1753837565506,4.73922693,118000.0,117990.0,0.2569896]
[1753837565918,4.74770143,118000.0,117990.0,0.2569896]
[1753837566118,4.73922693,118000.0,117990.0,0.2569896]
[1753837566319,4.74770143,118000.0,117990.0,0.2569896]
[1753837566519,4.74770136,118000.0,117990.0,0.2569896]
[1753837566744,4.74770136,118000.0,117990.0,0.2601896]
[1753837568895,4.73922693,118000.0,117990.0,0.2601896]
[1753837570046,4.73075257,118000.0,117990.0,0.2601896]
[1753837570285,4.73922693,118000.0,117990.0,0.2621996]
[1753837571326,4.73922685,118000.0,117990.0,0.2621996]
[1753837571748,4.74770121,118000.0,117990.0,0.2621996]
[1753837572209,4.28087899,118000.0,117990.0,0.2621996]
[1753837572418,4.74770121,118000.0,117990.0,0.2621996]
[1753837572758,4.61886121,118000.0,117990.0,0.2621996]
[1753837572993,4.61038685,118000.0,117990.0,0.2621996]
[1753837573438,4.61886128,118000.0,117990.0,0.2621996]
[1753837574470,4.61038728,118000.0,117990.0,0.2621996]
[1753837575127,4.61886185,118000.0,117990.0,0.2621996]
[1753837575469,0.50919385,118000.0,117990.0,0.2621996]
[1753837575670,4.61038728,118000.0,117990.0,0.2621996]
[1753837576118,4.61038728,118000.0,117990.0,0.1333596]
[1753837576317,4.61038728,118000.0,117990.0,0.2621996]
[1753837576748,4.61886178,118000.0,117990.0,0.2621996]
[1753837577408,4.77140495,118000.0,117990.0,0.2621996]
[1753837577844,4.60191343,118000.0,117990.0,0.2621996]
[1753837579789,4.60191343,118000.0,117990.0,0.23766]
[1753837580029,4.60191343,118000.0,117990.0,0.2621996]
[1753837580504,4.60191343,118000.0,117990.0,0.10882]
[1753837580711,4.60191343,118000.0,117990.0,0.2601896]
[1753837581111,4.60191343,118000.0,117990.0,0.23565]
[1753837581319,4.60291343,118000.0,117990.0,0.2601896]
[1753837582188,4.60291343,118000.0,117990.0,0.2621596]
[1753837583010,4.60291343,118000.0,117990.0,0.23762]
[1753837583203,4.60291343,118000.0,117990.0,0.2621596]
[1753837584102,4.12761635,118000.0,117990.0,0.2621596]
[1753837584324,4.59443857,118000.0,117990.0,0.2621596]
[1753837584545,0.24288518,118000.0,117990.0,0.2621596]
[1753837584783,0.24288518,118000.0,117990.0,0.1333196]
[1753837585009,0.24288518,118000.0,117990.0,0.2621596]
[1753837585458,0.2598336,118000.0,117990.0,0.2621596]
[1753837586136,0.49324471,118000.0,117990.0,0.2621596]
[1753837591433,0.49324471,118000.0,117990.0,0.2601896]
[1753837591888,0.49324464,118000.0,117990.0,0.2601896]
[1753837592538,0.501719,118000.0,117990.0,0.2601896]
[1753837592996,0.49324464,118000.0,117990.0,0.2601896]
[1753837594841,0.50171907,118000.0,117990.0,0.2601896]
[1753837595120,0.501719,118000.0,117990.0,0.2601896]
[1753837595465,0.0348967,118000.0,117990.0,0.2601896]
[1753837595716,0.50171892,118000.0,117990.0,0.2601896]
[1753837598133,0.51019335,118000.0,117990.0,0.2601896]
[1753837598336,0.0348967,118000.0,117990.0,0.2601896]
[1753837598551,0.50171892,118000.0,117990.0,0.2601896]
[1753837598764,0.51019335,118000.0,117990.0,0.2601896]
[1753837599613,0.50171892,118000.0,117990.0,0.2601896]
[1753837599966,0.51019335,118000.0,117990.0,0.2601896]
[1753837600170,0.50171892,118000.0,117990.0,0.2601896]
[1753837601004,0.51019342,118000.0,117990.0,0.2601896]
[1753837601208,0.51019335,118000.0,117990.0,0.2601896]
[1753837602364,0.51019328,118000.0,117990.0,0.2601896]
[1753837603593,0.50171892,118000.0,117990.0,0.2601896]
[1753837604257,0.51019335,118000.0,117990.0,0.2601896]
[1753837605052,0.50171892,118000.0,117990.0,0.2601896]
[1753837607227,0.51019335,118000.0,117990.0,0.2601896]
[1753837607639,0.67968487,118000.0,117990.0,0.1313496]
[1753837607912,4.89577286,118000.0,117990.0,0.20435]
[1753837608105,5.02461286,118000.0,117990.0,0.07551]
[1753837608534,5.02461286,118000.0,117990.0,0.1000496]
[1753837608909,4.99999154,118000.0,117990.0,0.07551]
[1753837610022,4.99999154,118000.0,117990.0,0.02651]
[1753837610023,5.59085167,118000.0,117990.0,0.02651]
[1753837610231,6.42000919,118000.0,117990.0,0.02651]
[1753837610449,6.49647319,118000.0,117990.0,0.02651]
[1753837610681,6.51478677,118000.0,117990.0,0.02651]
[1753837612142,6.51378677,118000.0,117990.0,0.02651]
[1753837612341,6.51376547,118000.0,117990.0,0.02651]
[1753837612770,2.40409747,118000.0,117990.0,0.02651]
[1753837612994,6.51676547,118000.0,117990.0,0.02651]
[1753837613177,6.51376547,118000.0,117990.0,0.02651]
[1753837613596,6.52703317,118000.0,117990.0,0.02651]
[1753837613806,6.53303317,118000.0,117990.0,0.02651]
[1753837614013,2.06213184,118000.0,117990.0,0.02651]
[1753837614223,6.17179984,118000.0,117990.0,0.02651]
[1753837614433,6.15350756,118000.0,117990.0,0.02651]
[1753837614843,6.14023986,118000.0,117990.0,0.02651]
[1753837616545,5.44000653,118000.0,117990.0,0.02651]
[1753837616758,6.11561854,118000.0,117990.0,0.02651]
[1753837618086,6.12888609,118000.0,117990.0,0.02651]
[1753837623031,6.10614259,118000.0,117990.0,0.02651]
[1753837623907,6.10614259,118000.0,117990.0,0.02651]
[1753837625513,1.99647459,118000.0,117990.0,0.02651]
[1753837625744,6.10614259,118000.0,117990.0,0.02651]
[1753837628045,6.12888609,118000.0,117990.0,0.02651]
[1753837629130,6.11678609,118000.0,117990.0,0.02651]
[1753837629584,2.00711809,118000.0,117990.0,0.02651]
[1753837629796,6.11678609,118000.0,117990.0,0.02651]
[1753837630199,6.10058609,118000.0,117990.0,0.02651]
[1753837631432,6.11884698,118000.0,117990.0,0.02651]
[1753837631634,2.00917898,118000.0,117990.0,0.02651]
[1753837631978,6.11884698,118000.0,117990.0,0.02651]
[1753837632542,6.10058609,118000.0,117990.0,0.02651]
[1753837632968,5.44313196,118000.0,117990.0,0.05781]
[1753837633202,5.67829321,118000.0,117990.0,0.05781]
[1753837633451,1.98000241,118000.0,117990.0,0.05781]
[1753837633644,6.08967041,118000.0,117990.0,0.05781]
[1753837634828,1.98000241,118000.0,117990.0,0.05781]
[1753837635038,6.08967041,118000.0,117990.0,0.05781]
[1753837635248,6.08367041,118000.0,117990.0,0.05781]
[1753837635458,6.10111943,118000.0,117990.0,0.05781]
[1753837635664,5.87070832,118000.0,117990.0,0.05781]
[1753837636684,6.10411943,118000.0,117990.0,0.05781]
[1753837636918,1.99445143,118000.0,117990.0,0.05781]
[1753837637105,6.18859673,118000.0,117990.0,0.05781]
[1753837639775,6.2542814,118000.0,117990.0,0.05781]
[1753837639993,2.1446134,118000.0,117990.0,0.05781]
[1753837640214,6.2542814,118000.0,117990.0,0.05781]
[1753837640645,6.22966008,118000.0,117990.0,0.05781]
[1753837642599,5.78293167,118000.0,117990.0,0.05781]
[1753837642812,5.88902817,118000.0,117990.0,0.05781]
[1753837643029,6.12243928,118000.0,117990.0,0.05781]
[1753837643611,5.88902817,118000.0,117990.0,0.05781]
[1753837645013,1.77936017,118000.0,117990.0,0.05781]
[1753837645226,5.88902817,118000.0,117990.0,0.05781]
[1753837646830,5.97350547,118000.0,117990.0,0.05781]
[1753837648235,5.94802147,118000.0,117990.0,0.05781]
[1753837649063,6.18143258,118000.0,117990.0,0.05781]
[1753837649314,6.16311273,118000.0,117990.0,0.05781]
[1753837650223,5.92970162,118000.0,117990.0,0.05781]
[1753837650637,5.84522432,118000.0,117990.0,0.05781]
[1753837652313,1.73555632,118000.0,117990.0,0.05781]
[1753837652515,5.3784021,118000.0,117990.0,0.05781]
[1753837652724,5.84522432,118000.0,117990.0,0.05781]
[1753837653405,1.73555632,118000.0,117990.0,0.05781]
[1753837653586,5.84522432,118000.0,117990.0,0.05781]
[1753837659583,1.73555632,118000.0,117990.0,0.05781]
[1753837659785,5.84522432,118000.0,117990.0,0.05781]
[1753837661030,5.86355192,118000.0,117990.0,0.05781]
[1753837667933,1.75388392,118000.0,117990.0,0.05781]
[1753837668230,5.86355192,118000.0,117990.0,0.05781]
[1753837669074,1.75388392,118000.0,117990.0,0.05781]
[1753837669275,5.86355192,118000.0,117990.0,0.05781]
[1753837670486,5.73471192,118000.0,117990.0,0.05781]
[1753837670689,5.86355192,118000.0,117990.0,0.05781]
[1753837675063,5.3967297,118000.0,117990.0,0.05781]
[1753837675268,5.86355192,118000.0,117990.0,0.05781]
[1753837676117,4.94549143,118000.0,117990.0,0.05781]
[1753837676320,5.5225463,118000.0,117990.0,0.05781]
[1753837676550,5.74748349,118000.0,117990.0,0.05781]
[1753837677042,5.74448349,118000.0,117990.0,0.05781]
[1753837677256,5.74648349,118000.0,117990.0,0.05781]
[1753837679563,5.72815589,118000.0,117990.0,0.05781]
[1753837680492,5.09184215,118000.0,117990.0,0.05781]
[1753837680694,5.56713894,118000.0,117990.0,0.05781]
[1753837681772,5.10031672,118000.0,117990.0,0.05781]
[1753837681981,5.56713894,118000.0,117990.0,0.05781]
[1753837683093,5.0828677,118000.0,117990.0,0.05781]
[1753837683331,5.54968992,118000.0,117990.0,0.05781]
[1753837683557,1.44002192,118000.0,117990.0,0.05781]
[1753837683765,5.54968992,118000.0,117990.0,0.05781]
[1753837684464,5.54121535,118000.0,117990.0,0.05781]
[1753837684880,5.54968992,118000.0,117990.0,0.05781]
[1753837685935,5.63416722,118000.0,117990.0,0.05781]
[1753837687306,5.167345,118000.0,117990.0,0.05781]
[1753837687520,5.54968985,118000.0,117990.0,0.05781]
[1753837689550,5.39968985,118000.0,117990.0,0.05781]
[1753837690711,5.39121571,118000.0,117990.0,0.05781]
[1753837690942,5.56070723,118000.0,117990.0,0.05781]
[1753837691417,5.64518453,118000.0,117990.0,0.05781]
[1753837691641,1.53551653,118000.0,117990.0,0.05781]
[1753837691882,5.64518453,118000.0,117990.0,0.05781]
[1753837692658,5.17836231,118000.0,117990.0,0.05781]
[1753837692872,5.64518453,118000.0,117990.0,0.05781]
[1753837693091,5.09388501,118000.0,117990.0,0.05781]
[1753837693310,5.56070723,118000.0,117990.0,0.05781]
[1753837694827,5.39121571,118000.0,117990.0,0.05781]
[1753837696200,1.28154771,118000.0,117990.0,0.05781]
[1753837696321,5.39121571,118000.0,117990.0,0.05781]
[1753837696963,5.55223302,118000.0,117990.0,0.05781]
[1753837701450,5.62823589,118000.0,117990.0,0.05781]
[1753837705693,5.54391859,118000.0,117990.0,0.05781]
[1753837706693,5.56086744,118000.0,117990.0,0.05781]
[1753837708206,5.39137592,118000.0,117990.0,0.05781]
[1753837708646,1.28170792,118000.0,117990.0,0.05781]
[1753837708861,5.39137592,118000.0,117990.0,0.05781]
[1753837709357,5.47585322,118000.0,117990.0,0.05781]
[1753837709763,5.39137592,118000.0,117990.0,0.05781]
[1753837710689,1.28170792,118000.0,117990.0,0.05781]
[1753837710890,5.39137592,118000.0,117990.0,0.05781]
[1753837711708,1.28170792,118000.0,117990.0,0.05781]
[1753837711907,5.39137592,118000.0,117990.0,0.05781]
[1753837713575,5.47585322,118000.0,117990.0,0.05781]
[1753837713868,5.64534474,118000.0,117990.0,0.05781]
[1753837716939,5.63687046,118000.0,117990.0,0.05781]
[1753837718283,5.55239316,118000.0,117990.0,0.05781]
[1753837718700,5.60337316,118000.0,117990.0,0.05781]
[1753837718972,5.55239316,118000.0,117990.0,0.05781]
[1753837719993,1.44272516,118000.0,117990.0,0.05781]
[1753837720237,5.55239316,118000.0,117990.0,0.05781]
[1753837723021,1.44272516,118000.0,117990.0,0.05781]
[1753837723229,5.55239316,118000.0,117990.0,0.05781]
[1753837723758,5.63687046,118000.0,117990.0,0.05781]
[1753837726791,5.62839596,118000.0,117990.0,0.05781]
[1753837726991,5.8533325,118000.0,117990.0,0.05781]
[1753837727175,1.7436645,118000.0,117990.0,0.05781]
[1753837727409,5.85288796,118000.0,117990.0,0.05781]
[1753837728793,6.0531591,118000.0,117990.0,0.02651]
[1753837730090,5.9686818,118000.0,117990.0,0.02651]
[1753837730754,5.92131698,118000.0,117990.0,0.02651]